Cogmind - Beta 10 X2 --- EXPLORER MODE // 2020.07.18 @ 22:18:17 // Experiment/BattleRoyale Player: Minty Result: Escaped! Performance ------------- Evolutions (0) 0 Regions Visited (0) 0 Robots Destroyed (3) 15 Value Destroyed (1500) 1500 Prototype IDs (2) 40 Alien Tech Used (0) 0 Bonus (28706) 28706 TOTAL SCORE: 30261 Bonus ------- Win 3000 Win Speed 25706 Cogmind --------- Core Integrity 75/250 Matter 285/300 Energy 341/365 System Corruption 2% Temperature Cool (3) Movement Treading (185) Ox1 Location To Epsilon Eridani Parts ------- > --- POWER (2) -------- Light Deuterium Engine Antimatter Reactor > --- PROPULSION (5) --- Improved Treads Armored Medium Treads > --- UTILITY (6) ------ Advanced Coolant Injector Advanced Sensor Array Particle Charger Advanced Thermal Shield Shock Absorption System > --- WEAPON (5) ------- Dispersion Rifle EM Pulse Cannon Advanced Plasma Cannon Advanced Assault Cannon Mass Driver > --- INVENTORY (4) ---- (None) Peak State ------------ > --- POWER ------------ Light Deuterium Engine Antimatter Reactor > --- PROPULSION ------- Experimental Biometal Medium Treads Armored Leg Gyrokinetic Inverter Xenon Bombardment Thruster > --- UTILITY ---------- Advanced Coolant Injector Advanced Weight Redist. System Particle Charger Quantum Capacitor Advanced Thermal Shield > --- WEAPON ----------- EM Pulse Cannon Cooled Plasma Cannon Makeshift Shrapnel Gun > --- INVENTORY -------- (None) [Rating: 82] Favorites ----------- Power Light Deuterium Engine Engine Light Deuterium Engine Reactor Antimatter Reactor Propulsion Experimental Biometal Medium Treads Treads Experimental Biometal Medium Treads Leg Armored Leg Hover Unit Gyrokinetic Inverter Flight Unit Xenon Bombardment Thruster Utility Advanced Coolant Injector Device Advanced Coolant Injector Weapon EM Pulse Cannon Energy Gun Dispersion Rifle Energy Cannon EM Pulse Cannon Ballistic Gun Makeshift Shrapnel Gun Ballistic Cannon Mass Driver Piercing Weapon Spear Build | -5 ------- Run | Tow Slots Evolved . | . Power . | . Propulsion . | . Utility . | . Weapon . | . Parts Attached 11 | 11 Power . | . Engine . | . Core . | . Reactor . | . Propulsion 3 | 3 Treads 3 | 3 Leg . | . Wheel . | . Hover . | . Flight . | . Utility 2 | 2 Device 2 | 2 Storage . | . Processor . | . Hackware . | . Protection . | . Artifact . | . Weapon 6 | 6 Energy Gun 1 | 1 Energy Cannon 2 | 2 Ballistic Gun . | . Ballistic Cannon 2 | 2 Launcher . | . Special Weapon . | . Impact Weapon . | . Slashing Weapon . | . Piercing Weapon 1 | 1 Special Melee Weapon . | . Unidentified Prototypes . | . Parts Lost 4 | 4 Power . | . Propulsion 2 | 2 Utility . | . Weapon 2 | 2 Highest Loss Streak 2 | 2 Average Slot Usage (%) 72 | 72 Engine 5 | 5 Reactor 5 | 5 Treads 11 | 11 Device 26 | 26 Energy Cannon 12 | 12 Ballistic Gun 5 | 5 Ballistic Cannon 2 | 2 Naked Turns . | . Heaviest Build 69 | 69 Greatest Support 119 | 119 Greatest Overweight (x) 1 | 1 Average Overweight (x) . | . Largest Inventory Capacity 4 | 4 Average Capacity 4 | 4 Most Carried 1 | 1 Average Carried . | . Final Capacity 4 | 4 Final Carried . | . Class Distribution -------------------- 70% | Hacker-Tank 22% | Hacker-Gunner 7% | Hacker-Mutant Dominant Class ---------------- Hacker-Tank | -5/Wartown Resources | -5 ----------- Run | Tow Matter Collected 52 | 52 Remotely . | . Salvage Created 101 | 101 Parts . | . Haulers Intercepted . | . Recyclers Shooed . | . Parts Field Recycled . | . Retrieved Matter . | . Parts Self-Destructed . | . Prevented . | . Kills | -5 ------- Run | Tow Combat Hostiles Destroyed 3 | 3 Guns 1 | 1 Cannons 2 | 2 Classes Destroyed 1 | 1 Player 3 | 3 Best Kill Streak 1 | 1 Combat Bots Only 1 | 1 Max Kills in Single Turn 1 | 1 Gunslinging . | . Exploded . | . Melee . | . Uniques/NPCs Destroyed . | . Combat | -5 -------- Run | Tow Damage Taken 506 | 506 Core 241 | 241 Absorbed by Shields . | . Redirected to Core 6316 | 6316 Core Remaining (%) 30 | 30 Volleys Fired 14 | 14 Largest 4 | 4 Hottest 242 | 242 Shots Fired 41 | 41 Gun 9 | 9 Cannon 32 | 32 Launcher . | . Special . | . Kinetic 15 | 15 Thermal 12 | 12 Explosive . | . Electromagnetic 14 | 14 Robot Hit Streak 20 | 20 Robot Miss Streak 2 | 2 Penetration Max . | . Secondary Targets . | . Shots Hit Robots 29 | 29 Core Hits 9 | 9 Critical Hits . | . Critical Kills . | . Critical Parts Destroyed . | . Melee Attacks 2 | 2 Impact . | . Slashing . | . Piercing 2 | 2 Sneak Attacks . | . Combat Hostiles . | . Follow-up Attacks . | . Damage Inflicted 815 | 815 Guns 124 | 124 Cannons 629 | 629 Explosions . | . Melee 62 | 62 Ramming . | . Kinetic 284 | 284 Thermal 228 | 228 Explosive . | . Electromagnetic 241 | 241 Impact . | . Slashing . | . Piercing 62 | 62 Highest Corruption 2 | 2 Average Corruption 1 | 1 Corruption Purged . | . Overload Shots . | . Overflow Damage . | . Projectiles . | . Explosions . | . Melee . | . Knockbacks . | . Impact . | . Kinetic . | . Secondary . | . Self-Inflicted Damage . | . Shots . | . Rammed . | . Targets Rammed . | . Kicked . | . Crushed . | . Highest Temperature 198 | 198 Average Temperature 92 | 92 Received Heat Transfer 81 | 81 Siege Activations . | . Robots Corrupted . | . Combat Hostiles . | . Parts Fried . | . Impact Corruptions . | . Robots Melted . | . Combat Hostiles . | . Parts Melted 4 | 4 Heat Transferred 84 | 84 Parts Sabotaged . | . Parts Stolen . | . Parts Stripped . | . Power Chain Reactions . | . Missiles Intercepted . | . Alert | -5 ------- Run | Tow Peak Influence . | . Average Influence . | . Maximum Alert Level . | . Low Security (%) . | . Level 1 . | . Level 2 . | . Level 3 . | . Level 4 . | . Level 5 . | . High Security . | . Max Security . | . Squads Dispatched . | . Investigation . | . Extermination . | . Reinforcement . | . Assault . | . Garrison . | . Intercept . | . Construction Impeded . | . Haulers Reinforced . | . Stealth | -5 --------- Run | Tow Distress Signals . | . Communications Jammed . | . Distress Signals . | . Times Spotted 3 | 3 Peak Tracking Total 2 | 2 Tactical Retreats . | . Traps | -5 ------- Run | Tow Traps Triggered . | . Indirectly . | . Trap Hack Attempts . | . Triggered . | . Disarmed . | . Reprogrammed . | . Reused . | . Traps Extracted . | . Installed . | . Triggered . | . Machines | -5 ---------- Run | Tow Machines Disabled 10 | 10 Max in Single Turn 9 | 9 Machines Sabotaged . | . Garrisons Compromised . | . Overloaded Fab Kills . | . Fab Network Shutdowns . | . Hacking | -5 --------- Run | Tow Machines Accessed . | . Terminals . | . Fabricators . | . Repair Stations . | . Recycling Units . | . Scanalyzers . | . Garrison Access . | . Total Hacks . | . Successful . | . Failed . | . Catastrophic . | . Database Lockouts . | . Manual . | . Terminals . | . Fabricators . | . Repair Stations . | . Recycling Units . | . Scanalyzers . | . Garrison Access . | . Terminal Hacks . | . Fabricator Hacks . | . Repair Station Hacks . | . Recycling Unit Hacks . | . Scanalyzer . | . Garrison Access Hacks . | . Unauthorized Hacks . | . Terminals . | . Fabricators . | . Repair Stations . | . Recycling Units . | . Scanalyzers . | . Garrison Access . | . Data Cores Recovered . | . Used . | . Hacking Detections . | . Full Trace Events . | . Feedback Events . | . Feedback Blocked . | . Robot Schematics Acquired . | . Robots Built . | . Matter . | . Time . | . Total Robot Build Rating . | . Part Schematics Acquired . | . Parts Built . | . Matter . | . Time . | . Total Part Build Rating . | . Parts Repaired . | . Time . | . Parts Recycled . | . Recycled Matter . | . Retrieved Matter . | . Retrieved Components . | . Parts Scanalyzed . | . Part Schematics Acquired . | . Parts Damaged . | . Bothacking | -5 ------------ Run | Tow Used RIF Installer . | . Robots Hacked . | . Non-combat . | . Combat . | . Robot Hacks Applied . | . Relay Couplers Released . | . Robots Rewired . | . Allies Hacked . | . Hacks Repelled . | . Allies | -5 -------- Run | Tow Total Allies . | . Largest Group . | . Highest-Rated Group . | . Highest-Rated Ally . | . Total Orders . | . Ally Attacks . | . Total Damage . | . Kills . | . Allies Corrupted . | . Allies Melted . | . Intel | -5 ------- Run | Tow Robot Analysis Total . | . Derelict Logs Recovered . | . Drone Launches . | . Drone Recoveries . | . Exploration | -5 ------------- Run | Tow Turns Passed 976 | 976 Spaces Moved 595 | 595 Core . | . Treads 595 | 595 Legs . | . Wheels . | . Hover . | . Flight . | . Fastest Speed 135 | 135 Average Speed 147 | 147 Slowest Speed 185 | 185 Overloaded Moves . | . Propulsion Burnouts . | . Robots Hopped . | . Cave-ins Triggered . | . Exploration Rate (%) 20 | 20 Regions Visited 1 Branch Regions 1 Pre-discovered Areas . | . Known Exits Taken . | . Unknown Exits Taken . | . Scrap Searched . | . Spaces Dug . | . Terrain Destroyed 25 | 25 Melee . | . Projectile . | . AOE 25 | 25 Actions | -5 --------- Run | Tow Total 661 | 661 Wait 34 | 34 Move 594 | 594 Hop . | . Pick Up . | . Fast Attach 9 | 9 Attach 1 | 1 Detach . | . Swap 1 | 1 Drop 6 | 6 Fire 14 | 14 Melee 2 | 2 Ram . | . Kick . | . Crush . | . Escape Stasis . | . Rewire . | . Trap . | . Miscellaneous . | . Route ------- -5/Wartown To Epsilon Eridani History --------- Turn | Location | Event 859 | -5/Wartown | Build established: Hacker-Tank 936 | -5/Wartown | Core integrity fell below 50% 977 | *** | Escaped! Last Messages --------------- 00566_ Acquired 25 matter. 00655_ Acquired Arm. Medium Treads. 00676_ Acquired Adv. Sensor Array. 00705_ Acquired Imp. Treads. 00719_ The unstable cave ceiling collapses. 00840_ Nuclear Reactor explodes. 00842_ The unstable cave ceiling collapses. 00870_ Penetrated by Slug. 00880_ Critical hit. 00880_ Exp. Biometal Medium Treads destroyed. 00926_ Slug penetrates Topsplitter-24. 00927_ Penetrated by Slug. 00932_ Critical hit. 00932_ Mak. Shrapnel Gun destroyed. 00938_ Penetrated by Slug. 00941_ Topsplitter-24 destroyed. [[Congratulations! You are victorious! The exit is now open...]] 00957_ Acquired Dispersion Rifle. 00959_ Acquired 27 matter. 00963_ Acquired Adv. Assault Cannon. Map ----- +----------------------------------------------------+ | ???????????? | | ! ! ??????????? | | ??????????? | | ]] ??????????? | | = ] ??????????????? | | %[ #?????????????????????? | | /"""" #?????????????????????? | | """" #?????????????????????? | | """" #?????????????????????? | | #?????????????????????? | | ! """" #?????????????????????? | | [[ """" = #?????????????????????? | | [ """" #?????????????????????? | | # #?????????????????????? | | """" # #?????????????????????? | | """" #######+++++########??????????????? | | """" # #??????????????? | | # #??????????????? | | """" # #??????????????? | | """" # #??????????????? | | """" # #??????????????? | | ### #??????????????? | | """" ; +??????????????? | | """" + +??????????????? | | """" ; +??????????????? | | ; @ +??????????????? | | + +??????????????? | | ####+##### #??????????????? | | #????????# #??????????????? | | #????????# #??????????????? | | #????????# #??????????????? | | #????????# #??????????????? | | #????????# = / #??????????????? | | #???? ??# / [ #???? ?????????? | | # ? ?########;++ ####### ??????? | | # ?# # ??????? | | # ? ?# ; ??????? | | # ?# ??????? | | " # ?# ???????? | | " # # ???????? | | " # # ????????? | | # # ????????? | | " # # ????????? | | " # # ?????????? | | " # # ?????????? | | # " ??????????? | | #########" ??????????? | | ???????????? | | # ????????????? | | # ?????????????? | +----------------------------------------------------+ Best States ------------- Heat Dissipation 25 Coolant Potential 100 Energy Generation 30 Energy Capacity 365 Matter Stores 300 Matter Capacity 300 Sight Range 16 Robot Scan Range 16 Terrain Scan Density 10 Additional Mass Support 9 Resistance: KI 35 Resistance: TH 65 Resistance: EX 60 Resistance: EM 35 Resistance: I 35 Resistance: S 35 Resistance: P 35 Evasion (%) 40 Recoil Reduction 3 Particle Charging 15 Offensive Hacking 20 Item Schematics ----------------- None Robot Schematics ------------------ None Fabricated ------------ Nothing Alien Tech Used ----------------- None Achievements -------------- None Challenges ------------ None Game ------ Seed ReactiveFocalStorm Manual? 0 Play Time 00:06:41 Cumulative 211.7 hours Start 2020.07.18 @ 22:10:31 End 2020.07.18 @ 22:18:17 Sessions 1 Manual Loads 0 Difficulty Explorer Special Mode Experiment/BattleRoyale Game No. 126 Rogue 0 Adventurer 44 Explorer 82 Win Type 0 Total 5 Types 4/0/1/0/0/0/0 Lore% 53 Gallery% 79 Achievement% 58 Wizard Run 0 Options --------- ASCII 0 Keyboard 0 Movement Mouse Keybinds 0 Fullscreen 1 Font 18/TerminusBold Map View 76x50 Tactical HUD 1 Map Filters NONE Filters SATURATION(100) Steam 1 RUN: 104ae5e3-7fdf-432e-aa57-8b3d6612b5eb